[Event "*** Titled Tuesday Blitz"]
[Site "Chess.com"]
[Date "2020.03.03"]
[Round "3"]
[White "ram1zan"]
[Black "MartinMatthiesen"]
[Result "1-0"]
[WhiteElo "2904"]
[BlackElo "2527"]
[TimeControl "180+1"]
[EndTime "9:31:56 PST"]
[Termination "ram1zan won on time"]

1. e4 {[%clk 0:02:59.3]} 1... e5 {[%clk 0:02:58.9]} 2. Nf3 {[%clk 0:02:55.7]}
2... Nc6 {[%clk 0:02:58.8]} 3. Bb5 {[%clk 0:02:55.7]} 3... a6 {[%clk 0:02:58.4]}
4. Ba4 {[%clk 0:02:54.8]} 4... Nf6 {[%clk 0:02:58.6]} 5. O-O {[%clk 0:02:54.8]}
5... Be7 {[%clk 0:02:58.5]} 6. Re1 {[%clk 0:02:54.9]} 6... b5 {[%clk 0:02:58.2]}
7. Bb3 {[%clk 0:02:55.4]} 7... O-O {[%clk 0:02:58.2]} 8. c3 {[%clk 0:02:50.8]}
8... d5 {[%clk 0:02:57.1]} 9. exd5 {[%clk 0:02:50.9]} 9... Nxd5 {[%clk 0:02:58]}
10. Nxe5 {[%clk 0:02:49.3]} 10... Nxe5 {[%clk 0:02:58]} 11. Rxe5 {[%clk
0:02:50.2]} 11... c6 {[%clk 0:02:58.7]} 12. d4 {[%clk 0:02:48.3]} 12... Bd6
{[%clk 0:02:58.4]} 13. Re1 {[%clk 0:02:48.8]} 13... Qh4 {[%clk 0:02:58.4]} 14.
g3 {[%clk 0:02:48.5]} 14... Qh3 {[%clk 0:02:58.6]} 15. Qf3 {[%clk 0:02:19.4]}
15... Bg4 {[%clk 0:02:40.2]} 16. Qg2 {[%clk 0:02:19.3]} 16... Qh5 {[%clk
0:02:39.8]} 17. Be3 {[%clk 0:02:07.6]} 17... Bf3 {[%clk 0:01:34.1]} 18. Qf1
{[%clk 0:02:06.3]} 18... Rae8 {[%clk 0:01:02.6]} 19. Nd2 {[%clk 0:02:01.7]}
19... Bg4 {[%clk 0:01:02.5]} 20. Qg2 {[%clk 0:01:51.4]} 20... Bh3 {[%clk
0:00:59.9]} 21. Qf3 {[%clk 0:01:45.1]} 21... Bg4 {[%clk 0:00:59.6]} 22. Qg2
{[%clk 0:01:45.1]} 22... Bh3 {[%clk 0:00:59.2]} 23. Qh1 {[%clk 0:01:45.5]} 23...
Re7 {[%clk 0:00:59.1]} 24. Ne4 {[%clk 0:01:18.5]} 24... Bc7 {[%clk 0:00:36.8]}
25. Bd1 {[%clk 0:00:36]} 25... Bg4 {[%clk 0:00:27.2]} 26. Bxg4 {[%clk
0:00:18.9]} 26... Qxg4 {[%clk 0:00:26.9]} 27. Nd2 {[%clk 0:00:19.6]} 27... Rfe8
{[%clk 0:00:22.4]} 28. Nf1 {[%clk 0:00:13.6]} 28... h5 {[%clk 0:00:21.2]} 29.
Qg2 {[%clk 0:00:12]} 29... Re6 {[%clk 0:00:19.9]} 30. h3 {[%clk 0:00:11]} 30...
Qg6 {[%clk 0:00:19.7]} 31. Bd2 {[%clk 0:00:08.6]} 31... f5 {[%clk 0:00:19.5]}
32. Rxe6 {[%clk 0:00:07.8]} 32... Rxe6 {[%clk 0:00:19.8]} 33. Ne3 {[%clk
0:00:07.4]} 33... Nf6 {[%clk 0:00:17.6]} 34. Rf1 {[%clk 0:00:04.4]} 34... Ne4
{[%clk 0:00:17.7]} 35. Bc1 {[%clk 0:00:04.9]} 35... h4 {[%clk 0:00:16.5]} 36.
gxh4 {[%clk 0:00:04.5]} 36... Qf7 {[%clk 0:00:16.3]} 37. Kh1 {[%clk 0:00:04.4]}
37... Rg6 {[%clk 0:00:16.1]} 38. Qf3 {[%clk 0:00:04]} 38... Rf6 {[%clk
0:00:13.4]} 39. Rg1 {[%clk 0:00:04.1]} 39... Qxa2 {[%clk 0:00:11.1]} 40. Nxf5
{[%clk 0:00:03.3]} 40... Qd5 {[%clk 0:00:11]} 41. Rxg7+ {[%clk 0:00:02.8]} 41...
Kf8 {[%clk 0:00:11.1]} 42. Bh6 {[%clk 0:00:02.9]} 42... Nxf2+ {[%clk 0:00:10.7]}
43. Kg2 {[%clk 0:00:02.7]} 43... Qxf3+ {[%clk 0:00:10.3]} 44. Kxf3 {[%clk
0:00:03.6]} 44... Rxf5+ {[%clk 0:00:10.8]} 45. Kg2 {[%clk 0:00:04.1]} 45... Rf6
{[%clk 0:00:10.9]} 46. Rg6+ {[%clk 0:00:03]} 46... Kf7 {[%clk 0:00:10.5]} 47.
Rxf6+ {[%clk 0:00:03.9]} 47... Kxf6 {[%clk 0:00:11.4]} 48. Kxf2 {[%clk
0:00:04.8]} 48... Kg6 {[%clk 0:00:11.7]} 49. Bg5 {[%clk 0:00:05]} 49... Kh5
{[%clk 0:00:11.9]} 50. Kf3 {[%clk 0:00:05.7]} 50... Bd6 {[%clk 0:00:11.8]} 51.
Ke4 {[%clk 0:00:06]} 51... a5 {[%clk 0:00:11.8]} 52. Kd3 {[%clk 0:00:06.1]}
52... a4 {[%clk 0:00:11.7]} 53. c4 {[%clk 0:00:06.2]} 53... a3 {[%clk
0:00:11.2]} 54. bxa3 {[%clk 0:00:05.5]} 54... Bxa3 {[%clk 0:00:10.6]} 55. cxb5
{[%clk 0:00:05.8]} 55... cxb5 {[%clk 0:00:10.5]} 56. d5 {[%clk 0:00:06.7]} 56...
Bd6 {[%clk 0:00:10.3]} 57. Ke4 {[%clk 0:00:06.8]} 57... b4 {[%clk 0:00:10.4]}
58. Kd3 {[%clk 0:00:06.8]} 58... Bc5 {[%clk 0:00:09.4]} 59. Kc4 {[%clk 0:00:07]}
59... Bd6 {[%clk 0:00:09.6]} 60. Bf6 {[%clk 0:00:07.4]} 60... Kg6 {[%clk
0:00:08.9]} 61. Bg5 {[%clk 0:00:07.6]} 61... Kh5 {[%clk 0:00:09]} 62. Bd8 {[%clk
0:00:08]} 62... Bf8 {[%clk 0:00:06.3]} 63. Ba5 {[%clk 0:00:03.6]} 63... Kxh4
{[%clk 0:00:05.7]} 64. Bxb4 {[%clk 0:00:04.5]} 64... Bg7 {[%clk 0:00:06.3]} 65.
Be7+ {[%clk 0:00:05]} 65... Kxh3 {[%clk 0:00:05.2]} 66. d6 {[%clk 0:00:05.9]}
66... Be5 {[%clk 0:00:04.6]} 67. d7 {[%clk 0:00:06.3]} 67... Bc7 {[%clk
0:00:05.5]} 68. Kd5 {[%clk 0:00:06.8]} 68... Kg4 {[%clk 0:00:05.4]} 69. Kc6
{[%clk 0:00:06.9]} 69... Ba5 {[%clk 0:00:05.3]} 70. Kb7 {[%clk 0:00:06.3]} 70...
Kf5 {[%clk 0:00:04.8]} 71. Kc8 {[%clk 0:00:05.5]} 71... Ke6 {[%clk 0:00:04.7]}
72. Bh4 {[%clk 0:00:05.4]} 72... Kd6 {[%clk 0:00:04]} 73. Bd8 {[%clk 0:00:03.7]}
73... Bc3 {[%clk 0:00:01.8]} 74. Bc7+ {[%clk 0:00:03.9]} 74... Kc6 {[%clk
0:00:01.7]} 75. d8=Q {[%clk 0:00:04.8]} 1-0

[Event "*** Titled Tuesday Blitz"]
[Site "Chess.com"]
[Date "2020.03.03"]
[Round "3"]
[White "Roman_Ovetchkin"]
[Black "Kotofeyca"]
[Result "1/2-1/2"]
[WhiteElo "2632"]
[BlackElo "2378"]
[TimeControl "180+1"]
[EndTime "9:32:13 PST"]
[Termination "Game drawn by repetition"]

1. d4 {[%clk 0:02:59.1]} 1... d5 {[%clk 0:02:59.6]} 2. c4 {[%clk 0:02:58.3]}
2... c6 {[%clk 0:03:00.1]} 3. Nf3 {[%clk 0:02:57.8]} 3... Nf6 {[%clk 0:03:00.1]}
4. Qc2 {[%clk 0:02:58]} 4... Bg4 {[%clk 0:02:59.4]} 5. Ne5 {[%clk 0:02:57.1]}
5... Bh5 {[%clk 0:02:59]} 6. cxd5 {[%clk 0:02:49.6]} 6... cxd5 {[%clk 0:02:52]}
7. Qb3 {[%clk 0:02:49.1]} 7... Qc8 {[%clk 0:02:47.6]} 8. Nc3 {[%clk 0:02:48.2]}
8... e6 {[%clk 0:02:47]} 9. Bg5 {[%clk 0:02:47.5]} 9... Nc6 {[%clk 0:02:45.2]}
10. e4 {[%clk 0:02:14.1]} 10... Nxe4 {[%clk 0:02:19.2]} 11. Nxe4 {[%clk
0:02:10.1]} 11... dxe4 {[%clk 0:02:19.1]} 12. Nxc6 {[%clk 0:01:48.4]} 12... bxc6
{[%clk 0:02:14.7]} 13. Bf4 {[%clk 0:01:37.4]} 13... a5 {[%clk 0:02:00.2]} 14. a3
{[%clk 0:01:29.4]} 14... Be7 {[%clk 0:01:45.1]} 15. Bc4 {[%clk 0:01:26.2]} 15...
O-O {[%clk 0:01:41.1]} 16. O-O {[%clk 0:01:25.8]} 16... Rd8 {[%clk 0:01:41.1]}
17. Be5 {[%clk 0:01:20.2]} 17... a4 {[%clk 0:01:31.7]} 18. Qh3 {[%clk
0:01:17.2]} 18... Bg6 {[%clk 0:01:27.4]} 19. Rac1 {[%clk 0:00:43.1]} 19... Qb7
{[%clk 0:01:26.3]} 20. Qc3 {[%clk 0:00:42.9]} 20... Rac8 {[%clk 0:01:18]} 21.
Rfe1 {[%clk 0:00:38.3]} 21... Qb6 {[%clk 0:01:08.5]} 22. Rcd1 {[%clk 0:00:28.8]}
22... Rd7 {[%clk 0:01:01.3]} 23. g3 {[%clk 0:00:21.4]} 23... h6 {[%clk
0:00:58.7]} 24. h4 {[%clk 0:00:21.3]} 24... Rb7 {[%clk 0:00:57]} 25. Rd2 {[%clk
0:00:20.4]} 25... Rd8 {[%clk 0:00:46.6]} 26. Re3 {[%clk 0:00:20.5]} 26... Rbd7
{[%clk 0:00:44.1]} 27. Kg2 {[%clk 0:00:20.7]} 27... c5 {[%clk 0:00:39]} 28. d5
{[%clk 0:00:08.3]} 28... exd5 {[%clk 0:00:37.5]} 29. Bxd5 {[%clk 0:00:07.3]}
29... Rxd5 {[%clk 0:00:35.3]} 30. Rxd5 {[%clk 0:00:07.8]} 30... Rxd5 {[%clk
0:00:36.1]} 31. Bxg7 {[%clk 0:00:08.3]} 31... Rd6 {[%clk 0:00:25.9]} 32. Be5
{[%clk 0:00:06.5]} 32... Re6 {[%clk 0:00:23.9]} 33. Bf4 {[%clk 0:00:02.9]} 33...
Bf6 {[%clk 0:00:23.4]} 34. Qc2 {[%clk 0:00:02.8]} 34... h5 {[%clk 0:00:22.1]}
35. Qxa4 {[%clk 0:00:02.8]} 35... Bd4 {[%clk 0:00:20.6]} 36. Re2 {[%clk
0:00:02.8]} 36... Qb7 {[%clk 0:00:19.6]} 37. Be3 {[%clk 0:00:02.7]} 37... Bxe3
{[%clk 0:00:19.1]} 38. Rxe3 {[%clk 0:00:02.9]} 38... Qd5 {[%clk 0:00:18.8]} 39.
Qa5 {[%clk 0:00:02.8]} 39... Kg7 {[%clk 0:00:19.1]} 40. b4 {[%clk 0:00:02.4]}
40... Qf5 {[%clk 0:00:19.3]} 41. Qxc5 {[%clk 0:00:02]} 41... Qxc5 {[%clk
0:00:18.7]} 42. bxc5 {[%clk 0:00:02.9]} 42... Rc6 {[%clk 0:00:18.5]} 43. Rc3
{[%clk 0:00:03.8]} 43... f5 {[%clk 0:00:18.4]} 44. Kf1 {[%clk 0:00:04.4]} 44...
Kf6 {[%clk 0:00:17.9]} 45. Ke2 {[%clk 0:00:05]} 45... Ke5 {[%clk 0:00:18.5]} 46.
Ke3 {[%clk 0:00:05.7]} 46... Kd5 {[%clk 0:00:08.3]} 47. Kf4 {[%clk 0:00:04.8]}
47... Be8 {[%clk 0:00:09.2]} 48. Kg5 {[%clk 0:00:04.5]} 48... Kd4 {[%clk
0:00:09.3]} 49. Rc1 {[%clk 0:00:04]} 49... Bd7 {[%clk 0:00:09.4]} 50. Kxh5
{[%clk 0:00:04]} 50... Rxc5 {[%clk 0:00:08.7]} 51. Rd1+ {[%clk 0:00:04]} 51...
Ke5 {[%clk 0:00:07.2]} 52. Rxd7 {[%clk 0:00:04.9]} 52... Rc2 {[%clk 0:00:07.7]}
53. Kg5 {[%clk 0:00:05.3]} 53... Rxf2 {[%clk 0:00:07.5]} 54. Rf7 {[%clk
0:00:04.7]} 54... e3 {[%clk 0:00:07.2]} 55. g4 {[%clk 0:00:04.5]} 55... Ke6
{[%clk 0:00:06.9]} 56. Rf8 {[%clk 0:00:03.1]} 56... Ke7 {[%clk 0:00:06.3]} 57.
Rc8 {[%clk 0:00:02.5]} 57... e2 {[%clk 0:00:06.5]} 58. Rc3 {[%clk 0:00:02.1]}
58... Rf1 {[%clk 0:00:06.6]} 59. Re3+ {[%clk 0:00:01.8]} 59... Kf7 {[%clk
0:00:07]} 60. Rxe2 {[%clk 0:00:02.7]} 60... fxg4 {[%clk 0:00:07.6]} 61. Kxg4
{[%clk 0:00:02.8]} 61... Ra1 {[%clk 0:00:07.6]} 62. Re3 {[%clk 0:00:02.7]} 62...
Kg6 {[%clk 0:00:07.7]} 63. Rf3 {[%clk 0:00:02.9]} 63... Rg1+ {[%clk 0:00:07.2]}
64. Kf4 {[%clk 0:00:02.9]} 64... Ra1 {[%clk 0:00:08.1]} 65. Ke5 {[%clk
0:00:03.1]} 65... Kh5 {[%clk 0:00:06.6]} 66. Kd5 {[%clk 0:00:03.6]} 66... Kxh4
{[%clk 0:00:07]} 67. Kc5 {[%clk 0:00:04.2]} 67... Kg4 {[%clk 0:00:07.9]} 68. Rb3
{[%clk 0:00:03.9]} 68... Kf4 {[%clk 0:00:08.1]} 69. Kb5 {[%clk 0:00:04.3]} 69...
Ke5 {[%clk 0:00:08.3]} 70. a4 {[%clk 0:00:04.9]} 70... Kd6 {[%clk 0:00:08.9]}
71. a5 {[%clk 0:00:04.1]} 71... Kc7 {[%clk 0:00:09.3]} 72. Ka6 {[%clk
0:00:04.6]} 72... Ra4 {[%clk 0:00:08.4]} 73. Rb7+ {[%clk 0:00:04]} 73... Kc8
{[%clk 0:00:08]} 74. Rb5 {[%clk 0:00:04.1]} 74... Kc7 {[%clk 0:00:08]} 75. Ka7
{[%clk 0:00:04.4]} 75... Kc6 {[%clk 0:00:08.4]} 76. Rh5 {[%clk 0:00:03.6]} 76...
Kc7 {[%clk 0:00:09.3]} 77. a6 {[%clk 0:00:04]} 77... Kc8 {[%clk 0:00:08.8]} 78.
Rc5+ {[%clk 0:00:03.9]} 78... Kd7 {[%clk 0:00:08.4]} 79. Kb6 {[%clk 0:00:04]}
79... Rb4+ {[%clk 0:00:08.2]} 80. Ka7 {[%clk 0:00:04.1]} 80... Kd6 {[%clk
0:00:07.9]} 81. Rc2 {[%clk 0:00:02.9]} 81... Kd7 {[%clk 0:00:08.5]} 82. Ka8
{[%clk 0:00:03.3]} 82... Kd8 {[%clk 0:00:08.2]} 83. a7 {[%clk 0:00:03.7]} 83...
Rb1 {[%clk 0:00:07.7]} 84. Rc5 {[%clk 0:00:03.5]} 84... Kd7 {[%clk 0:00:08]} 85.
Rc4 {[%clk 0:00:03.7]} 85... Kd8 {[%clk 0:00:08.2]} 86. Rc3 {[%clk 0:00:04]}
86... Kd7 {[%clk 0:00:08.5]} 87. Rh3 {[%clk 0:00:04.6]} 87... Kc7 {[%clk
0:00:08.3]} 88. Rh7+ {[%clk 0:00:04.9]} 88... Kc8 {[%clk 0:00:08.5]} 89. Rh8+
{[%clk 0:00:05.3]} 89... Kc7 {[%clk 0:00:09]} 90. Rb8 {[%clk 0:00:05.8]} 90...
Ra1 {[%clk 0:00:08.9]} 91. Rh8 {[%clk 0:00:05.5]} 91... Rb1 {[%clk 0:00:07.8]}
92. Rh7+ {[%clk 0:00:05.8]} 92... Kc8 {[%clk 0:00:08]} 93. Rh8+ {[%clk
0:00:06.5]} 93... Kc7 {[%clk 0:00:08.5]} 1/2-1/2

[Event "*** Titled Tuesday Blitz"]
[Site "Chess.com"]
[Date "2020.03.03"]
[Round "3"]
[White "isla88"]
[Black "malandragem"]
[Result "1/2-1/2"]
[WhiteElo "2293"]
[BlackElo "2575"]
[TimeControl "180+1"]
[EndTime "9:32:45 PST"]
[Termination "Game drawn by repetition"]

1. c4 {[%clk 0:02:59.4]} 1... c5 {[%clk 0:02:58.6]} 2. Nf3 {[%clk 0:02:59]} 2...
Nc6 {[%clk 0:02:57.5]} 3. Nc3 {[%clk 0:02:57.6]} 3... e5 {[%clk 0:02:45.6]} 4.
e3 {[%clk 0:02:57]} 4... f5 {[%clk 0:02:34.4]} 5. d4 {[%clk 0:02:56.5]} 5... e4
{[%clk 0:02:33.2]} 6. d5 {[%clk 0:02:56.4]} 6... exf3 {[%clk 0:02:32.9]} 7. dxc6
{[%clk 0:02:56]} 7... bxc6 {[%clk 0:02:27]} 8. gxf3 {[%clk 0:02:55.7]} 8... Nf6
{[%clk 0:02:19.1]} 9. b3 {[%clk 0:02:44.3]} 9... g6 {[%clk 0:02:19.2]} 10. Bb2
{[%clk 0:02:44.2]} 10... Bg7 {[%clk 0:02:19.4]} 11. Qd2 {[%clk 0:02:43.3]} 11...
Qe7 {[%clk 0:02:17.1]} 12. Be2 {[%clk 0:02:36.2]} 12... O-O {[%clk 0:02:14.2]}
13. h4 {[%clk 0:02:33.3]} 13... d5 {[%clk 0:02:10.7]} 14. cxd5 {[%clk
0:02:31.3]} 14... cxd5 {[%clk 0:02:10.3]} 15. Nxd5 {[%clk 0:02:10.7]} 15... Nxd5
{[%clk 0:02:11.2]} 16. Bxg7 {[%clk 0:01:28.4]} 16... Kxg7 {[%clk 0:02:12.1]} 17.
Qxd5 {[%clk 0:01:27.9]} 17... Bb7 {[%clk 0:02:12.6]} 18. Qc4 {[%clk 0:01:24.9]}
18... Qf6 {[%clk 0:02:10.3]} 19. Rd1 {[%clk 0:01:19.8]} 19... Rad8 {[%clk
0:02:04.1]} 20. O-O {[%clk 0:01:18.3]} 20... f4 {[%clk 0:01:53.5]} 21. Rxd8
{[%clk 0:01:13.9]} 21... Rxd8 {[%clk 0:01:54.4]} 22. Qxf4 {[%clk 0:00:56.1]}
22... Qxf4 {[%clk 0:01:53.6]} 23. exf4 {[%clk 0:00:56.4]} 23... Rd2 {[%clk
0:01:50]} 24. Rd1 {[%clk 0:00:41.6]} 24... Rxe2 {[%clk 0:01:50]} 25. Rd7+ {[%clk
0:00:41.6]} 25... Kh6 {[%clk 0:01:45.3]} 26. Rxb7 {[%clk 0:00:41.5]} 26... Rxa2
{[%clk 0:01:46]} 27. Rb5 {[%clk 0:00:40]} 27... Rb2 {[%clk 0:01:42.4]} 28. Kg2
{[%clk 0:00:34.4]} 28... a6 {[%clk 0:01:33.5]} 29. Rxc5 {[%clk 0:00:33.5]} 29...
Rxb3 {[%clk 0:01:33.7]} 30. Ra5 {[%clk 0:00:33.9]} 30... Rb6 {[%clk 0:01:32.1]}
31. Kg3 {[%clk 0:00:33.8]} 31... Rf6 {[%clk 0:01:28]} 32. Kg4 {[%clk 0:00:33.2]}
32... Kg7 {[%clk 0:01:26.5]} 33. Kg3 {[%clk 0:00:32.2]} 33... Kf7 {[%clk
0:01:22.6]} 34. f5 {[%clk 0:00:30.5]} 34... gxf5 {[%clk 0:01:19]} 35. Kf4 {[%clk
0:00:30.5]} 35... Kg6 {[%clk 0:01:17.8]} 36. Kg3 {[%clk 0:00:23.4]} 36... Rb6
{[%clk 0:01:12.3]} 37. h5+ {[%clk 0:00:20.1]} 37... Kf6 {[%clk 0:00:48]} 38. Kf4
{[%clk 0:00:16.7]} 38... Rb4+ {[%clk 0:00:38.7]} 39. Ke3 {[%clk 0:00:16.7]}
39... Kg5 {[%clk 0:00:34.2]} 40. Rxa6 {[%clk 0:00:14.2]} 40... Rb3+ {[%clk
0:00:34.7]} 41. Ke2 {[%clk 0:00:12.7]} 41... h6 {[%clk 0:00:30.2]} 42. Rg6+
{[%clk 0:00:11.2]} 42... Kxh5 {[%clk 0:00:28.8]} 43. Rg3 {[%clk 0:00:11.7]}
43... Kh4 {[%clk 0:00:25.5]} 44. Kf1 {[%clk 0:00:11.7]} 44... h5 {[%clk
0:00:23.9]} 45. Kg2 {[%clk 0:00:11.4]} 45... Rb4 {[%clk 0:00:22.3]} 46. Rh3+
{[%clk 0:00:09.9]} 46... Kg5 {[%clk 0:00:20.8]} 47. Rg3+ {[%clk 0:00:10.5]}
47... Kf6 {[%clk 0:00:21]} 48. Rh3 {[%clk 0:00:10.4]} 48... h4 {[%clk
0:00:20.8]} 49. Rh1 {[%clk 0:00:09.1]} 49... Kg5 {[%clk 0:00:20.7]} 50. Kh3
{[%clk 0:00:08.8]} 50... Kf4 {[%clk 0:00:20.5]} 51. Kg2 {[%clk 0:00:07.7]} 51...
Kg5 {[%clk 0:00:20.5]} 52. Kh3 {[%clk 0:00:07.3]} 52... Rf4 {[%clk 0:00:20.7]}
53. Rg1+ {[%clk 0:00:07.4]} 53... Kh5 {[%clk 0:00:20.3]} 54. Kg2 {[%clk
0:00:06.4]} 54... Kg5 {[%clk 0:00:20.1]} 55. Kh3+ {[%clk 0:00:05.6]} 55... Kf6
{[%clk 0:00:20.8]} 56. Kg2 {[%clk 0:00:05.2]} 56... Ke5 {[%clk 0:00:21.3]} 57.
Re1+ {[%clk 0:00:05.4]} 57... Kd4 {[%clk 0:00:21.4]} 58. Rd1+ {[%clk 0:00:05]}
58... Kc3 {[%clk 0:00:21.7]} 59. Rd8 {[%clk 0:00:04.7]} 59... Kc4 {[%clk
0:00:20.6]} 60. Ra8 {[%clk 0:00:03.9]} 60... Kd3 {[%clk 0:00:20.6]} 61. Rd8+
{[%clk 0:00:03.9]} 61... Ke2 {[%clk 0:00:20.7]} 62. Re8+ {[%clk 0:00:04.2]}
62... Kd3 {[%clk 0:00:21]} 63. Rd8+ {[%clk 0:00:04.4]} 63... Kc4 {[%clk
0:00:21.4]} 64. Rc8+ {[%clk 0:00:04.5]} 64... Kd5 {[%clk 0:00:21.8]} 65. Rd8+
{[%clk 0:00:04.6]} 65... Ke5 {[%clk 0:00:22.3]} 66. Re8+ {[%clk 0:00:04.6]}
66... Kf6 {[%clk 0:00:22.7]} 67. Rg8 {[%clk 0:00:04.9]} 67... h3+ {[%clk
0:00:19.7]} 68. Kxh3 {[%clk 0:00:04.7]} 68... Rxf3+ {[%clk 0:00:20.1]} 69. Kg2
{[%clk 0:00:05.1]} 69... Rb3 {[%clk 0:00:19.8]} 70. Ra8 {[%clk 0:00:05.2]} 70...
Kg5 {[%clk 0:00:19.7]} 71. Ra4 {[%clk 0:00:05]} 71... f4 {[%clk 0:00:16.2]} 72.
Re4 {[%clk 0:00:04.3]} 72... Kg4 {[%clk 0:00:14.6]} 73. Re8 {[%clk 0:00:03.5]}
73... f3+ {[%clk 0:00:14.6]} 74. Kh2 {[%clk 0:00:03.7]} 74... Rb5 {[%clk
0:00:12.4]} 75. Rg8+ {[%clk 0:00:02.7]} 75... Kf4 {[%clk 0:00:12.8]} 76. Rf8+
{[%clk 0:00:02.1]} 76... Ke4 {[%clk 0:00:10.9]} 77. Re8+ {[%clk 0:00:01.8]}
77... Kf4 {[%clk 0:00:11.5]} 78. Rf8+ {[%clk 0:00:01.8]} 78... Ke4 {[%clk
0:00:07.4]} 79. Re8+ {[%clk 0:00:02.2]} 79... Kd4 {[%clk 0:00:07.7]} 80. Rf8
{[%clk 0:00:02.1]} 80... Rb3 {[%clk 0:00:06.7]} 81. Kg3 {[%clk 0:00:02.3]} 81...
Ke4 {[%clk 0:00:06.6]} 82. Rf4+ {[%clk 0:00:02.5]} 82... Ke5 {[%clk 0:00:06.2]}
83. Rxf3 {[%clk 0:00:03.1]} 83... Rb4 {[%clk 0:00:06.7]} 84. Re3+ {[%clk
0:00:03.2]} 84... Kf5 {[%clk 0:00:07]} 85. Rf3+ {[%clk 0:00:03.5]} 85... Kg5
{[%clk 0:00:07.5]} 86. Re3 {[%clk 0:00:03.7]} 86... Kf5 {[%clk 0:00:07.8]} 87.
f3 {[%clk 0:00:03.8]} 87... Kg5 {[%clk 0:00:07.8]} 88. Ra3 {[%clk 0:00:04.1]}
88... Kf5 {[%clk 0:00:07.8]} 89. Ra5+ {[%clk 0:00:04.2]} 89... Kf6 {[%clk
0:00:08.3]} 90. f4 {[%clk 0:00:04.8]} 90... Rb1 {[%clk 0:00:06.6]} 91. Ra6+
{[%clk 0:00:05]} 91... Kf5 {[%clk 0:00:06.7]} 92. Ra5+ {[%clk 0:00:05.2]} 92...
Kf6 {[%clk 0:00:07.3]} 93. Ra6+ {[%clk 0:00:05.5]} 93... Kf5 {[%clk 0:00:07.8]}
94. Ra5+ {[%clk 0:00:06]} 94... Kf6 {[%clk 0:00:08.3]} 1/2-1/2